{"text_format":"1","workbook":"xlsx","n_sheets":10,"sheets":["Instruções","Cadastro de Fornecedores","Consolidado","F1","F2","F3","F4","F5","Enderecos","Listas"],"not_rendered":{"charts":0,"images":8,"macros":1,"external_links":0,"defined_names":3,"comments":0,"pivot_tables":0},"unopened":[],"bounds":{"document_bytes":16777216,"sheet_cells":100000,"rows_first":2000,"rows_last":500,"rows_between":2000,"halvings":0,"cell_chars":16384,"cell_head_chars":4096},"cells_cut":0,"cells_raw":0,"read":"whole","date_system":"1900"}

{"sheet":"Instruções","index":0,"n_rows":14,"n_cols":11,"rows_kept":14,"cut":false,"hidden":false,"merged":[]}
[]
[null,"Instruções"]
[]
[null,"A RenovaCalc é uma ferramenta de cálculo de emissões de Gases de Efeito Estufa (GEE) de biocombustíveis, de acordo com o referencial metodológico estabelecido pelo programa RenovaBio."]
[]
[null,"O responsável pelo preenchimento deve estar atento às seguintes diretrizes:"]
[]
[null,"1. Só devem ser preenchidas as células demarcadas em pontilhado:",null,null,null,null," Ao optar pelo \"padrão\", estas células serão automaticamente preenchidas pela RenovaCalc "]
[]
[null,"2. A unidade de preenchimento de cada parâmetro é padrão estará sempre indicada ao lado da célula que deve ser preenchida. Por exemplo:",null,null,null,null,null,null,"Ureia",null," kg N/TC"]
[]
[null,"2.1. O usuário deve sempre inserir os dados na unidade pré-indicada, sendo considerado incorreto qualquer dado que esteja em outra unidade "]
[]
[null,"2.2. Ao selecionar a célula a ser preenchida, orientações de como preencher cada parâmetro serão fornecidas.    Por exemplo:"]

{"sheet":"Cadastro de Fornecedores","index":1,"n_rows":13,"n_cols":6,"rows_kept":13,"cut":false,"hidden":false,"merged":[]}
[]
[null,"Cadastro de Fornecedores de Cana-de-açúcar"]
[]
[]
[null,"Identificação do fornecedor","Número de registro no CAR","Área total","Produção total colhida para moagem","Opção de preenchimento"]
[null,null,null,"ha","t cana"]
[null,{"$f":"'F1'!$C$4","v":"Fornecedor Hipotético 1"},{"$f":"'F1'!$D$18","v":"UF-1302405-E6D3.395B.6D27.4F42.AE22.DD56.987C.DD51"},{"$f":"'F1'!$D$23","v":1000},{"$f":"'F1'!$D$25","v":66735.200100000002},{"$f":"CONCATENATE(\"Dados \",'F1'!$B$32)","v":"Dados Primários"}]
[null,{"$f":"'F2'!$C$4","v":"Fornecedor Hipotético 2"},{"$f":"'F2'!$D$18","v":"UF-1302405-E6D3.395B.6D27.4F42.AE22.DD56.987C.DD52"},{"$f":"'F2'!$D$23","v":1000},{"$f":"'F2'!$D$25","v":66735.200100000002},{"$f":"CONCATENATE(\"Dados \",'F2'!$B$32)","v":"Dados Primários"}]
[null,{"$f":"'F3'!$C$4","v":"Fornecedor Hipotético 3"},{"$f":"'F3'!$D$18","v":"UF-1302405-E6D3.395B.6D27.4F42.AE22.DD56.987C.DD53"},{"$f":"'F3'!$D$23","v":1000},{"$f":"'F3'!$D$25","v":66735.200100000002},{"$f":"CONCATENATE(\"Dados \",'F3'!$B$32)","v":"Dados Primários"}]
[null,{"$f":"'F4'!$C$4","v":"Fornecedor Hipotético 4"},{"$f":"'F4'!$D$18","v":"UF-1302405-E6D3.395B.6D27.4F42.AE22.DD56.987C.DD54"},{"$f":"'F4'!$D$23","v":1000},{"$f":"'F4'!$D$25","v":66735.200100000002},{"$f":"CONCATENATE(\"Dados \",'F4'!$B$32)","v":"Dados Primários"}]
[null,{"$f":"'F5'!$C$4","v":"Fornecedor Hipotético 5"},{"$f":"'F5'!$D$18","v":"UF-1302405-E6D3.395B.6D27.4F42.AE22.DD56.987C.DD55"},{"$f":"'F5'!$D$23","v":1000},{"$f":"'F5'!$D$25","v":66735.200100000002},{"$f":"CONCATENATE(\"Dados \",'F5'!$B$32)","v":"Dados Primários"}]
[null,"             Adicionar fornecedor*"]
[null,"*Funcionalidade a ser inserida no sistema informatizado"]

{"sheet":"Consolidado","index":2,"n_rows":82,"n_cols":8,"rows_kept":82,"cut":false,"hidden":false,"merged":[[66,1,66,7],[41,1,41,7],[59,1,59,7],[33,1,33,7],[36,1,36,7],[13,1,13,7],[14,1,14,2],[29,1,29,7],[3,2,3,7],[5,2,5,7],[7,2,7,7],[9,2,9,3],[12,1,12,7],[17,3,17,4]]}
[]
[null,"Fornecedores de Cana-de-Açúcar"]
[]
[null,"Nome da Usina:","Usina Hipotética"]
[]
[null,"CNPJ:","00.000.000/0000-00"]
[]
[null,"Responsável pelo preenchimento:","GT ACV RenovaCalc"]
[]
[null,"Telefone :","(00) 0000-0000"]
[]
[]
[null,"Fornecedores - Dados consolidados"]
[null,"Informações gerais"]
[null,"Houve supressão de vegetação nativa a partir de 26 de dezembro de 2017?",null,{"$f":"IF(OR('F1'!D15=\"Sim\",'F2'!D15=\"Sim\",'F3'!D15=\"Sim\",'F4'!D15=\"Sim\",'F5'!D15=\"Sim\"),\"Sim\",\"Não\")","v":"Não"}]
[null,null,"Usina atende ao ZAE Cana?",{"$f":"IF(OR('F1'!D16=\"Não\",'F2'!D16=\"Não\",'F3'!D16=\"Não\",'F4'!D16=\"Não\",'F5'!D16=\"Não\"),\"Não\",\"Sim\")","v":"Sim"}]
[]
[null,null,"Número de registro no CAR","Cadastro de fornecedores"]
[]
[null,null,"Situação do CAR",{"$f":"IF(AND('F1'!D20=\"Ativo\",'F2'!D20=\"Ativo\",'F3'!D20=\"Ativo\",'F4'!D20=\"Ativo\",'F5'!D20=\"Ativo\"),\"Ativo\",IF(OR('F1'!D20=\"Cancelado\",'F2'!D20=\"Cancelado\",'F3'!D20=\"Cancelado\",'F4'!D20=\"Cancelado\",'F5'!D20=\"Cancelado\"),\"Cancelado\",\"Pendente\"))","v":"Ativo"}]
[]
[null,null,"Sistema de plantio","Convencional"]
[null,null,"Área total",{"$f":"'F1'!D23+'F2'!D23+'F3'!D23+'F4'!D23+'F5'!D23","v":5000},"ha"]
[]
[null,null,"Produção total colhida para moagem",{"$f":"'F1'!D25+'F2'!D25+'F3'!D25+'F4'!D25+'F5'!D25","v":333676.00050000002},"t cana"]
[null,null,"Teor de impurezas vegetais (base úmida)",{"$f":"('F1'!D26*'F1'!$D$25+'F2'!D26*'F2'!$D$25+'F3'!D26*'F3'!$D$25+'F4'!D26*'F4'!$D$25+'F5'!D26*'F5'!$D$25)/$D$25","v":49.999999999999993},"kg/t cana","Umidade",{"$f":"IF(('F1'!D26*'F1'!$D$25+'F2'!D26*'F2'!$D$25+'F3'!D26*'F3'!$D$25+'F4'!D26*'F4'!$D$25+'F5'!D26*'F5'!$D$25)<>0,('F1'!G26*'F1'!D26*'F1'!$D$25+'F2'!G26*'F2'!D26*'F2'!$D$25+'F3'!G26*'F3'!D26*'F3'!$D$25+'F4'!G26*'F4'!D26*'F4'!$D$25+'F5'!G26*'F5'!D26*'F5'!$D$25)/('F1'!D26*'F1'!$D$25+'F2'!D26*'F2'!$D$25+'F3'!D26*'F3'!$D$25+'F4'!D26*'F4'!$D$25+'F5'!D26*'F5'!$D$25),0)","v":0.5}]
[null,null,"Teor de impurezas minerais",{"$f":"('F1'!D27*'F1'!$D$25+'F2'!D27*'F2'!$D$25+'F3'!D27*'F3'!$D$25+'F4'!D27*'F4'!$D$25+'F5'!D27*'F5'!$D$25)/$D$25","v":20},"kg/t cana"]
[null,null,"Palha recolhida (base seca)",{"$f":"'F1'!D28+'F2'!D28+'F3'!D28+'F4'!D28+'F5'!D28","v":0},"t palha"]
[]
[null,"Tipo de preenchimento"]
[null,"Tipo de dados forneceidos pelos fornecedores:"]
[null,"Em função das informações de cada fornecedor"]
[]
[null,"Área Queimada"]
[null,null,"Área queimada",{"$f":"'F1'!D35+'F2'!D35+'F3'!D35+'F4'!D35+'F5'!D35","v":920},"ha"]
[]
[null,"Corretivos"]
[null,null,"Calcário calcítico",{"$f":"('F1'!D38*'F1'!$D$25+'F2'!D38*'F2'!$D$25+'F3'!D38*'F3'!$D$25+'F4'!D38*'F4'!$D$25+'F5'!D38*'F5'!$D$25)/$D$25","v":0},"kg/t cana"]
[null,null,"Calcário dolomítico",{"$f":"('F1'!D39*'F1'!$D$25+'F2'!D39*'F2'!$D$25+'F3'!D39*'F3'!$D$25+'F4'!D39*'F4'!$D$25+'F5'!D39*'F5'!$D$25)/$D$25","v":5.7899999999999991},"kg/t cana"]
[null,null,"Gesso",{"$f":"('F1'!D40*'F1'!$D$25+'F2'!D40*'F2'!$D$25+'F3'!D40*'F3'!$D$25+'F4'!D40*'F4'!$D$25+'F5'!D40*'F5'!$D$25)/$D$25","v":2.79},"kg/t cana"]
[]
[null,"Fertilizantes Sintéticos"]
[null,null,"Ureia",{"$f":"('F1'!D43*'F1'!$D$25+'F2'!D43*'F2'!$D$25+'F3'!D43*'F3'!$D$25+'F4'!D43*'F4'!$D$25+'F5'!D43*'F5'!$D$25)/$D$25","v":1.1069999999999998},"kg N/t cana"]
[null,null,"Fosfato monoamônico (MAP)",{"$f":"('F1'!D44*'F1'!$D$25+'F2'!D44*'F2'!$D$25+'F3'!D44*'F3'!$D$25+'F4'!D44*'F4'!$D$25+'F5'!D44*'F5'!$D$25)/$D$25","v":0},"kg N/t cana"]
[null,null,"Fosfato monoamônico (MAP)",{"$f":"('F1'!D45*'F1'!$D$25+'F2'!D45*'F2'!$D$25+'F3'!D45*'F3'!$D$25+'F4'!D45*'F4'!$D$25+'F5'!D45*'F5'!$D$25)/$D$25","v":0},"kg P₂O₅/t cana"]
[null,null,"Fosfato diamônico (DAP)",{"$f":"('F1'!D46*'F1'!$D$25+'F2'!D46*'F2'!$D$25+'F3'!D46*'F3'!$D$25+'F4'!D46*'F4'!$D$25+'F5'!D46*'F5'!$D$25)/$D$25","v":0},"kg N/t cana"]
[null,null,"Fosfato diamônico (DAP)",{"$f":"('F1'!D47*'F1'!$D$25+'F2'!D47*'F2'!$D$25+'F3'!D47*'F3'!$D$25+'F4'!D47*'F4'!$D$25+'F5'!D47*'F5'!$D$25)/$D$25","v":0},"kg P₂O₅/t cana"]
[null,null,"Nitrato de amônio",{"$f":"('F1'!D48*'F1'!$D$25+'F2'!D48*'F2'!$D$25+'F3'!D48*'F3'!$D$25+'F4'!D48*'F4'!$D$25+'F5'!D48*'F5'!$D$25)/$D$25","v":0},"kg N/t cana"]
[null,null,"Solução de nitrato de amônio e ureia (UAN)",{"$f":"('F1'!D49*'F1'!$D$25+'F2'!D49*'F2'!$D$25+'F3'!D49*'F3'!$D$25+'F4'!D49*'F4'!$D$25+'F5'!D49*'F5'!$D$25)/$D$25","v":0},"kg N/t cana"]
[null,null,"Amônia anidra",{"$f":"('F1'!D50*'F1'!$D$25+'F2'!D50*'F2'!$D$25+'F3'!D50*'F3'!$D$25+'F4'!D50*'F4'!$D$25+'F5'!D50*'F5'!$D$25)/$D$25","v":0},"kg N/t cana"]
[null,null,"Sulfato de amônio",{"$f":"('F1'!D51*'F1'!$D$25+'F2'!D51*'F2'!$D$25+'F3'!D51*'F3'!$D$25+'F4'!D51*'F4'!$D$25+'F5'!D51*'F5'!$D$25)/$D$25","v":0},"kg N/t cana"]
[null,null,"Nitrato de amônio e cálcio (CAN)",{"$f":"('F1'!D52*'F1'!$D$25+'F2'!D52*'F2'!$D$25+'F3'!D52*'F3'!$D$25+'F4'!D52*'F4'!$D$25+'F5'!D52*'F5'!$D$25)/$D$25","v":0},"kg N/t cana"]
[null,null,"Superfosfato simples (SSP)",{"$f":"('F1'!D53*'F1'!$D$25+'F2'!D53*'F2'!$D$25+'F3'!D53*'F3'!$D$25+'F4'!D53*'F4'!$D$25+'F5'!D53*'F5'!$D$25)/$D$25","v":0.44389883336711794},"kg P₂O₅/t cana"]
[null,null,"Superfosfato triplo (TSP)",{"$f":"('F1'!D54*'F1'!$D$25+'F2'!D54*'F2'!$D$25+'F3'!D54*'F3'!$D$25+'F4'!D54*'F4'!$D$25+'F5'!D54*'F5'!$D$25)/$D$25","v":0},"kg P₂O₅/t cana"]
[null,null,"Cloreto de potássio (KCl)",{"$f":"('F1'!D55*'F1'!$D$25+'F2'!D55*'F2'!$D$25+'F3'!D55*'F3'!$D$25+'F4'!D55*'F4'!$D$25+'F5'!D55*'F5'!$D$25)/$D$25","v":1.3462049016245499},"kg K₂O/t cana"]
[null,"Outros","especificar",{"$f":"('F1'!D56*'F1'!$D$25+'F2'!D56*'F2'!$D$25+'F3'!D56*'F3'!$D$25+'F4'!D56*'F4'!$D$25+'F5'!D56*'F5'!$D$25)/$D$25","v":0},"kg N/t cana"]
[null,"Outros","especificar",{"$f":"('F1'!D57*'F1'!$D$25+'F2'!D57*'F2'!$D$25+'F3'!D57*'F3'!$D$25+'F4'!D57*'F4'!$D$25+'F5'!D57*'F5'!$D$25)/$D$25","v":0},"kg P₂O₅/t cana"]
[null,"Outros","especificar",{"$f":"('F1'!D58*'F1'!$D$25+'F2'!D58*'F2'!$D$25+'F3'!D58*'F3'!$D$25+'F4'!D58*'F4'!$D$25+'F5'!D58*'F5'!$D$25)/$D$25","v":0},"kg K₂O/t cana"]
[]
[null,"Fertilizantes Orgânicos/Organominerais"]
[null,null,"Vinhaça",{"$f":"('F1'!D61*'F1'!$D$25+'F2'!D61*'F2'!$D$25+'F3'!D61*'F3'!$D$25+'F4'!D61*'F4'!$D$25+'F5'!D61*'F5'!$D$25)/$D$25","v":440.2},"L/t cana","Concentração de N",{"$f":"IF(('F1'!D61*'F1'!$D$25+'F2'!D61*'F2'!$D$25+'F3'!D61*'F3'!$D$25+'F4'!D61*'F4'!$D$25+'F5'!D61*'F5'!$D$25)<>0,('F1'!G61*'F1'!D61*'F1'!$D$25+'F2'!G61*'F2'!D61*'F2'!$D$25+'F3'!G61*'F3'!D61*'F3'!$D$25+'F4'!G61*'F4'!D61*'F4'!$D$25+'F5'!G61*'F5'!D61*'F5'!$D$25)/('F1'!D61*'F1'!$D$25+'F2'!D61*'F2'!$D$25+'F3'!D61*'F3'!$D$25+'F4'!D61*'F4'!$D$25+'F5'!D61*'F5'!$D$25),0)","v":0.375},"g N/L"]
[null,null,"Torta de Filtro (base úmida)",{"$f":"('F1'!D62*'F1'!$D$25+'F2'!D62*'F2'!$D$25+'F3'!D62*'F3'!$D$25+'F4'!D62*'F4'!$D$25+'F5'!D62*'F5'!$D$25)/$D$25","v":30.57142857142858},"kg/t cana","Concentração de N",{"$f":"IF(('F1'!D62*'F1'!$D$25+'F2'!D62*'F2'!$D$25+'F3'!D62*'F3'!$D$25+'F4'!D62*'F4'!$D$25+'F5'!D62*'F5'!$D$25)<>0,('F1'!G62*'F1'!D62*'F1'!$D$25+'F2'!G62*'F2'!D62*'F2'!$D$25+'F3'!G62*'F3'!D62*'F3'!$D$25+'F4'!G62*'F4'!D62*'F4'!$D$25+'F5'!G62*'F5'!D62*'F5'!$D$25)/('F1'!D62*'F1'!$D$25+'F2'!D62*'F2'!$D$25+'F3'!D62*'F3'!$D$25+'F4'!D62*'F4'!$D$25+'F5'!D62*'F5'!$D$25),0)","v":13.999999999999998},"g N/kg"]
[null,null,"Cinzas e fuligem (base úmida)",{"$f":"('F1'!D63*'F1'!$D$25+'F2'!D63*'F2'!$D$25+'F3'!D63*'F3'!$D$25+'F4'!D63*'F4'!$D$25+'F5'!D63*'F5'!$D$25)/$D$25","v":7.2},"kg/t cana","Concentração de N",{"$f":"IF(('F1'!D63*'F1'!$D$25+'F2'!D63*'F2'!$D$25+'F3'!D63*'F3'!$D$25+'F4'!D63*'F4'!$D$25+'F5'!D63*'F5'!$D$25)<>0,('F1'!G63*'F1'!D63*'F1'!$D$25+'F2'!G63*'F2'!D63*'F2'!$D$25+'F3'!G63*'F3'!D63*'F3'!$D$25+'F4'!G63*'F4'!D63*'F4'!$D$25+'F5'!G63*'F5'!D63*'F5'!$D$25)/('F1'!D63*'F1'!$D$25+'F2'!D63*'F2'!$D$25+'F3'!D63*'F3'!$D$25+'F4'!D63*'F4'!$D$25+'F5'!D63*'F5'!$D$25),0)","v":0},"g N/kg"]
[null,"Outros","especificar",{"$f":"('F1'!D64*'F1'!$D$25+'F2'!D64*'F2'!$D$25+'F3'!D64*'F3'!$D$25+'F4'!D64*'F4'!$D$25+'F5'!D64*'F5'!$D$25)/$D$25","v":0},"kg/t cana","Concentração de N",{"$f":"IF(('F1'!D64*'F1'!$D$25+'F2'!D64*'F2'!$D$25+'F3'!D64*'F3'!$D$25+'F4'!D64*'F4'!$D$25+'F5'!D64*'F5'!$D$25)<>0,('F1'!G64*'F1'!D64*'F1'!$D$25+'F2'!G64*'F2'!D64*'F2'!$D$25+'F3'!G64*'F3'!D64*'F3'!$D$25+'F4'!G64*'F4'!D64*'F4'!$D$25+'F5'!G64*'F5'!D64*'F5'!$D$25)/('F1'!D64*'F1'!$D$25+'F2'!D64*'F2'!$D$25+'F3'!D64*'F3'!$D$25+'F4'!D64*'F4'!$D$25+'F5'!D64*'F5'!$D$25),0)","v":0},"g N/kg"]
[null,"Outros","especificar",{"$f":"('F1'!D65*'F1'!$D$25+'F2'!D65*'F2'!$D$25+'F3'!D65*'F3'!$D$25+'F4'!D65*'F4'!$D$25+'F5'!D65*'F5'!$D$25)/$D$25","v":0},"kg/t cana","Concentração de N",{"$f":"IF(('F1'!D65*'F1'!$D$25+'F2'!D65*'F2'!$D$25+'F3'!D65*'F3'!$D$25+'F4'!D65*'F4'!$D$25+'F5'!D65*'F5'!$D$25)<>0,('F1'!G65*'F1'!D65*'F1'!$D$25+'F2'!G65*'F2'!D65*'F2'!$D$25+'F3'!G65*'F3'!D65*'F3'!$D$25+'F4'!G65*'F4'!D65*'F4'!$D$25+'F5'!G65*'F5'!D65*'F5'!$D$25)/('F1'!D65*'F1'!$D$25+'F2'!D65*'F2'!$D$25+'F3'!D65*'F3'!$D$25+'F4'!D65*'F4'!$D$25+'F5'!D65*'F5'!$D$25),0)","v":0},"g N/kg"]
[]
[null,"Combustíveis e eletricidade da rede"]
[null,null,"Diesel - B8",{"$f":"('F1'!D68*'F1'!$D$25+'F2'!D68*'F2'!$D$25+'F3'!D68*'F3'!$D$25+'F4'!D68*'F4'!$D$25+'F5'!D68*'F5'!$D$25)/$D$25","v":3.18},"L/t cana"]
[null,null,"Diesel - B10",{"$f":"('F1'!D69*'F1'!$D$25+'F2'!D69*'F2'!$D$25+'F3'!D69*'F3'!$D$25+'F4'!D69*'F4'!$D$25+'F5'!D69*'F5'!$D$25)/$D$25","v":0},"L/t cana"]
[null,null,"Diesel - BX",{"$f":"('F1'!D70*'F1'!$D$25+'F2'!D70*'F2'!$D$25+'F3'!D70*'F3'!$D$25+'F4'!D70*'F4'!$D$25+'F5'!D70*'F5'!$D$25)/$D$25","v":0},"L/t cana","Teor de biodiesel na mistura",{"$f":"IF(('F1'!D70*'F1'!$D$25+'F2'!D70*'F2'!$D$25+'F3'!D70*'F3'!$D$25+'F4'!D70*'F4'!$D$25+'F5'!D70*'F5'!$D$25)<>0,('F1'!G70*'F1'!D70*'F1'!$D$25+'F2'!G70*'F2'!D70*'F2'!$D$25+'F3'!G70*'F3'!D70*'F3'!$D$25+'F4'!G70*'F4'!D70*'F4'!$D$25+'F5'!G70*'F5'!D70*'F5'!$D$25)/('F1'!D70*'F1'!$D$25+'F2'!D70*'F2'!$D$25+'F3'!D70*'F3'!$D$25+'F4'!D70*'F4'!$D$25+'F5'!D70*'F5'!$D$25),0)","v":0}]
[null,null,"Diesel - B20",{"$f":"('F1'!D71*'F1'!$D$25+'F2'!D71*'F2'!$D$25+'F3'!D71*'F3'!$D$25+'F4'!D71*'F4'!$D$25+'F5'!D71*'F5'!$D$25)/$D$25","v":0},"L/t cana"]
[null,null,"Diesel - B30",{"$f":"('F1'!D72*'F1'!$D$25+'F2'!D72*'F2'!$D$25+'F3'!D72*'F3'!$D$25+'F4'!D72*'F4'!$D$25+'F5'!D72*'F5'!$D$25)/$D$25","v":0},"L/t cana"]
[null,null,"Biodiesel - B100",{"$f":"('F1'!D73*'F1'!$D$25+'F2'!D73*'F2'!$D$25+'F3'!D73*'F3'!$D$25+'F4'!D73*'F4'!$D$25+'F5'!D73*'F5'!$D$25)/$D$25","v":0},"L/t cana"]
[null,null,"Gasolina C",{"$f":"('F1'!D74*'F1'!$D$25+'F2'!D74*'F2'!$D$25+'F3'!D74*'F3'!$D$25+'F4'!D74*'F4'!$D$25+'F5'!D74*'F5'!$D$25)/$D$25","v":0},"L/t cana"]
[null,null,"Etanol hidratado",{"$f":"('F1'!D75*'F1'!$D$25+'F2'!D75*'F2'!$D$25+'F3'!D75*'F3'!$D$25+'F4'!D75*'F4'!$D$25+'F5'!D75*'F5'!$D$25)/$D$25","v":0},"L/t cana"]
[null,null,"Biometano de terceiros",{"$f":"('F1'!D76*'F1'!$D$25+'F2'!D76*'F2'!$D$25+'F3'!D76*'F3'!$D$25+'F4'!D76*'F4'!$D$25+'F5'!D76*'F5'!$D$25)/$D$25","v":0},"Nm³/t cana"]
[null,null,"Biometano próprio",{"$f":"('F1'!D77*'F1'!$D$25+'F2'!D77*'F2'!$D$25+'F3'!D77*'F3'!$D$25+'F4'!D77*'F4'!$D$25+'F5'!D77*'F5'!$D$25)/$D$25","v":0},"Nm³/t cana"]
[null,null,"Eletricidade da rede - mix médio",{"$f":"('F1'!D78*'F1'!$D$25+'F2'!D78*'F2'!$D$25+'F3'!D78*'F3'!$D$25+'F4'!D78*'F4'!$D$25+'F5'!D78*'F5'!$D$25)/$D$25","v":0},"kWh/t cana"]
[null,null,"Eletricidade - PCH",{"$f":"('F1'!D79*'F1'!$D$25+'F2'!D79*'F2'!$D$25+'F3'!D79*'F3'!$D$25+'F4'!D79*'F4'!$D$25+'F5'!D79*'F5'!$D$25)/$D$25","v":0},"kWh/t cana"]
[null,null,"Eletricidade - biomassa",{"$f":"('F1'!D80*'F1'!$D$25+'F2'!D80*'F2'!$D$25+'F3'!D80*'F3'!$D$25+'F4'!D80*'F4'!$D$25+'F5'!D80*'F5'!$D$25)/$D$25","v":0},"kWh/t cana"]
[null,null,"Eletricidade - eólica",{"$f":"('F1'!D81*'F1'!$D$25+'F2'!D81*'F2'!$D$25+'F3'!D81*'F3'!$D$25+'F4'!D81*'F4'!$D$25+'F5'!D81*'F5'!$D$25)/$D$25","v":0},"kWh/t cana"]
[null,null,"Eletricidade - solar",{"$f":"('F1'!D82*'F1'!$D$25+'F2'!D82*'F2'!$D$25+'F3'!D82*'F3'!$D$25+'F4'!D82*'F4'!$D$25+'F5'!D82*'F5'!$D$25)/$D$25","v":0},"kWh/t cana"]

{"sheet":"F1","index":3,"n_rows":82,"n_cols":26,"rows_kept":82,"cut":false,"hidden":false,"merged":[[59,19,59,25],[66,1,66,7],[66,10,66,16],[66,19,66,25],[59,1,59,7],[59,10,59,16],[41,1,41,7],[41,10,41,16],[41,19,41,25],[36,1,36,7],[36,10,36,16],[36,19,36,25],[14,1,14,2],[29,1,29,7],[29,10,29,16],[29,19,29,25],[33,1,33,7],[33,10,33,16],[33,19,33,25],[17,3,17,6],[12,19,12,25],[13,1,13,7],[13,10,13,16],[13,19,13,25],[12,1,12,7],[3,2,3,7],[5,2,5,7],[7,2,7,7],[9,2,9,3],[12,10,12,16]]}
[]
[null,"Fornecedor de Cana-de-Açúcar"]
[]
[null,"Identificação do fornecedor:","Fornecedor Hipotético 1"]
[]
[null,"CNPJ/CPF:","00.000.000/0000-00"]
[]
[null,"Responsável pelo preenchimento:","GT ACV RenovaCalc"]
[]
[null,"Telefone :","(00) 0000-0000"]
[]
[]
[null,"Fornecedor",null,null,null,null,null,null,null,null,"Default - Cana",null,null,null,null,null,null,null,null,"Guarda dados de preenchimento"]
[null,"Informações gerais",null,null,null,null,null,null,null,null,"Informações gerais",null,null,null,null,null,null,null,null,"Informações gerais"]
[null,"Houve supressão de vegetação nativa a partir de 26 de dezembro de 2017?",null,"Não"]
[null,null,"Usina atende ao ZAE Cana?","Sim"]
[]
[null,null,"Número de registro no CAR (ou número de protocolo)","UF-1302405-E6D3.395B.6D27.4F42.AE22.DD56.987C.DD51"]
[]
[null,null,"Situação do CAR","Ativo"]
[]
[null,null,"Sistema de plantio","Convencional"]
[null,null,"Área total",1000,"ha"]
[]
[null,null,"Produção total colhida para moagem",66735.200100000002,"t cana"]
[null,null,"Teor de impurezas vegetais (base úmida)",50,"kg/t cana","Umidade",0.5]
[null,null,"Teor de impurezas minerais",20,"kg/t cana"]
[null,null,"Palha recolhida (base seca)",0,"t palha"]
[]
[null,"Tipo de preenchimento",null,null,null,null,null,null,null,null,"Tipo de preenchimento",null,null,null,null,null,null,null,null,"Tipo de preenchimento"]
[null,"Tipo de dados forneceidos pelo fornecedor:",null,null,null,null,null,null,null,null,null,null,"Padrão",null,null,null,null,null,null,null,null,"Primários"]
[null,{"$f":"V31","v":"Primários"}]
[]
[null,"Área Queimada",null,null,null,null,null,null,null,null,"Área Queimada",null,null,null,null,null,null,null,null,"Área Queimada"]
[null,null,"Área queimada",184,"ha",null,null,null,null,null,null,"Área queimada",1,"% da área total",null,null,null,null,null,null,"Área queimada",184,"% da área total"]
[]
[null,"Corretivos",null,null,null,null,null,null,null,null,"Corretivos",null,null,null,null,null,null,null,null,"Corretivos"]
[null,null,"Calcário calcítico",0,"kg/t cana",null,null,null,null,null,null,"Calcário calcítico",0,"kg/t cana",null,null,null,null,null,null,"Calcário calcítico",0,"kg/t cana"]
[null,null,"Calcário dolomítico",5.79,"kg/t cana",null,null,null,null,null,null,"Calcário dolomítico",8.1059999999999999,"kg/t cana",null,null,null,null,null,null,"Calcário dolomítico",5.79,"kg/t cana"]
[null,null,"Gesso",2.79,"kg/t cana",null,null,null,null,null,null,"Gesso",3.9060000000000001,"kg/t cana",null,null,null,null,null,null,"Gesso",2.79,"kg/t cana"]
[]
[null,"Fertilizantes Sintéticos",null,null,null,null,null,null,null,null,"Fertilizantes Sintéticos",null,null,null,null,null,null,null,null,"Fertilizantes Sintéticos"]
[null,null,"Ureia",1.107,"kg N/t cana",null,null,null,null,null,null,"Ureia",1.5498000000000001," kg N/TC",null,null,null,null,null,null,"Ureia",1.107," kg N/TC"]
[null,null,"Fosfato monoamônico (MAP)",0,"kg N/t cana",null,null,null,null,null,null,"Fosfato monoamônico (MAP)",0," kg N/TC",null,null,null,null,null,null,"Fosfato monoamônico (MAP)",0," kg N/TC"]
[null,null,"Fosfato monoamônico (MAP)",0,"kg P₂O₅/t cana",null,null,null,null,null,null,"Fosfato monoamônico (MAP)",0," kg P2O5/TC",null,null,null,null,null,null,"Fosfato monoamônico (MAP)",0," kg P2O5/TC"]
[null,null,"Fosfato diamônico (DAP)",0,"kg N/t cana",null,null,null,null,null,null,"Fosfato diamônico (DAP)",0," kg N/TC",null,null,null,null,null,null,"Fosfato diamônico (DAP)",0," kg N/TC"]
[null,null,"Fosfato diamônico (DAP)",0,"kg P₂O₅/t cana",null,null,null,null,null,null,"Fosfato diamônico (DAP)",0," kg P2O5/TC",null,null,null,null,null,null,"Fosfato diamônico (DAP)",0," kg P2O5/TC"]
[null,null,"Nitrato de amônio",0,"kg N/t cana",null,null,null,null,null,null,"Nitrato de amônio",0," kg N/TC",null,null,null,null,null,null,"Nitrato de amônio",0," kg N/TC"]
[null,null,"Solução de nitrato de amônio e ureia (UAN)",0,"kg N/t cana",null,null,null,null,null,null,"Solução de nitrato de amônio e ureia (UAN)",0," kg N/TC",null,null,null,null,null,null,"Solução de nitrato de amônio e ureia (UAN)",0," kg N/TC"]
[null,null,"Amônia anidra",0,"kg N/t cana",null,null,null,null,null,null,"Amônia anidra",0," kg N/TC",null,null,null,null,null,null,"Amônia anidra",0," kg N/TC"]
[null,null,"Sulfato de amônio",0,"kg N/t cana",null,null,null,null,null,null,"Sulfato de amônio",0," kg N/TC",null,null,null,null,null,null,"Sulfato de amônio",0," kg N/TC"]
[null,null,"Nitrato de amônio e cálcio (CAN)",0,"kg N/t cana",null,null,null,null,null,null,"Nitrato de amônio e cálcio (CAN)",0," kg N/TC",null,null,null,null,null,null,"Nitrato de amônio e cálcio (CAN)",0," kg N/TC"]
[null,null,"Superfosfato simples (SSP)",0.443898833367118,"kg P₂O₅/t cana",null,null,null,null,null,null,"Superfosfato simples (SSP)",0.62145836671396526," kg P2O5/TC",null,null,null,null,null,null,"Superfosfato simples (SSP)",0.443898833367118," kg P2O5/TC"]
[null,null,"Superfosfato triplo (TSP)",0,"kg P₂O₅/t cana",null,null,null,null,null,null,"Superfosfato triplo (TSP)",0," kg P2O5/TC",null,null,null,null,null,null,"Superfosfato triplo (TSP)",0," kg P2O5/TC"]
[null,null,"Cloreto de potássio (KCl)",1.3462049016245501,"kg K₂O/t cana",null,null,null,null,null,null,"Cloreto de potássio (KCl)",1.8846868622743767," kg K2O/TC",null,null,null,null,null,null,"Cloreto de potássio (KCl)",1.3462049016245501," kg K2O/TC"]
[null,"Outros","especificar",0,"kg N/t cana",null,null,null,null,null,"Outros ","especificar",0," kg N /TC",null,null,null,null,null,"Outros ","especificar",0," kg N /TC"]
[null,"Outros","especificar",0,"kg P₂O₅/t cana",null,null,null,null,null,"Outros ","especificar",0," kg P2O5/TC",null,null,null,null,null,"Outros ","especificar",0," kg P2O5/TC"]
[null,"Outros","especificar",0,"kg K₂O/t cana",null,null,null,null,null,"Outros ","especificar",0," kg K2O/TC",null,null,null,null,null,"Outros ","especificar",0," kg K2O/TC"]
[]
[null,"Fertilizantes Orgânicos/Organominerais",null,null,null,null,null,null,null,null,"Fertilizantes Orgânicos/Organominerais",null,null,null,null,null,null,null,null,"Fertilizantes Orgânicos/Organominerais"]
[null,null,"Vinhaça",440.2,"L/t cana","Concentração de N",0.375,"g N/L",null,null,null,"Vinhaça",616.28,"L/t cana","Concentração de N",0.375,"g N/L",null,null,null,"Vinhaça",440.2,"L/t cana","Concentração de N",0.375,"g N/L"]
[null,null,"Torta de Filtro (base úmida)",30.571428571428577,"kg/t cana","Concentração de N",14,"g N/kg",null,null,null,"Torta de Filtro (base úmida)",42.800000000000011,"kg/t cana","Concentração de N",14,"g N/kg",null,null,null,"Torta de Filtro (base úmida)",30.571428571428577,"kg/t cana","Concentração de N",14,"g N/kg"]
[null,null,"Cinzas e fuligem (base úmida)",7.2,"kg/t cana","Concentração de N",null,"g N/kg",null,null,null,"Cinzas e fuligem (base úmida)",10.08,"kg/t cana","Concentração de N",null,"g N/kg",null,null,null,"Cinzas e fuligem (base úmida)",7.2,"kg/t cana","Concentração de N",null,"g N/kg"]
[null,"Outros","especificar",0,"kg/t cana","Concentração de N",null,"g N/kg",null,null,"Outros","especificar",0,"kg/t cana","Concentração de N",null,"g N/kg",null,null,"Outros","especificar",0,"kg/t cana","Concentração de N",null,"g N/kg"]
[null,"Outros","especificar",0,"kg/t cana","Concentração de N",null,"g N/kg",null,null,"Outros","especificar",0,"kg/t cana","Concentração de N",null,"g N/kg",null,null,"Outros","especificar",0,"kg/t cana","Concentração de N",null,"g N/kg"]
[]
[null,"Combustíveis e eletricidade da rede",null,null,null,null,null,null,null,null,"Combustíveis e eletricidade da rede",null,null,null,null,null,null,null,null,"Combustíveis e eletricidade da rede"]
[null,null,"Diesel - B8",3.18,"L/t cana",null,null,null,null,null,null,"Diesel - B8",4.452,"L/t cana",null,null,null,null,null,null,"Diesel - B8",3.18,"L/t cana"]
[null,null,"Diesel - B10",0,"L/t cana",null,null,null,null,null,null,"Diesel - B10",0,"L/t cana",null,null,null,null,null,null,"Diesel - B10",0,"L/t cana"]
[null,null,"Diesel - BX",0,"L/t cana","Teor de biodiesel na mistura",0.11,null,null,null,null,"Diesel - BX",0,"L/t cana","Teor médio de biodiesel na mistura",0.11,"%",null,null,null,"Diesel - BX",0,"L/t cana","Teor médio de biodiesel na mistura",0.11,"%"]
[null,null,"Diesel - B20",0,"L/t cana",null,null,null,null,null,null,"Diesel - B20",0,"L/t cana",null,null,null,null,null,null,"Diesel - B20",0,"L/t cana"]
[null,null,"Diesel - B30",0,"L/t cana",null,null,null,null,null,null,"Diesel - B30",0,"L/t cana",null,null,null,null,null,null,"Diesel - B30",0,"L/t cana"]
[null,null,"Biodiesel - B100",0,"L/t cana",null,null,null,null,null,null,"Biodiesel - B100",0,"L/t cana",null,null,null,null,null,null,"Biodiesel - B100",0,"L/t cana"]
[null,null,"Gasolina C",0,"L/t cana",null,null,null,null,null,null,"Gasolina C",0,"L/t cana",null,null,null,null,null,null,"Gasolina C",0,"L/t cana"]
[null,null,"Etanol hidratado",0,"L/t cana",null,null,null,null,null,null,"Etanol hidratado",0,"L/t cana",null,null,null,null,null,null,"Etanol hidratado",0,"L/t cana"]
[null,null,"Biometano de terceiros",0,"Nm³/t cana",null,null,null,null,null,null,"Biometano de terceiros",0,"Nm³/t cana",null,null,null,null,null,null,"Biometano de terceiros",0,"Nm³/t cana"]
[null,null,"Biometano próprio",0,"Nm³/t cana",null,null,null,null,null,null,"Biometano próprio",0,"Nm³/t cana",null,null,null,null,null,null,"Biometano próprio",0,"Nm³/t cana"]
[null,null,"Eletricidade da rede - mix médio",0,"kWh/t cana",null,null,null,null,null,null,"Eletricidade da rede - mix médio",0,"kWh/t cana",null,null,null,null,null,null,"Eletricidade da rede - mix médio",0,"kWh/t cana"]
[null,null,"Eletricidade - PCH",0,"kWh/t cana",null,null,null,null,null,null,"Eletricidade - PCH",0,"kWh/t cana",null,null,null,null,null,null,"Eletricidade - PCH",0,"kWh/t cana"]
[null,null,"Eletricidade - biomassa",0,"kWh/t cana",null,null,null,null,null,null,"Eletricidade - biomassa",0,"kWh/t cana",null,null,null,null,null,null,"Eletricidade - biomassa",0,"kWh/t cana"]
[null,null,"Eletricidade - eólica",0,"kWh/t cana",null,null,null,null,null,null,"Eletricidade - eólica",0,"kWh/t cana",null,null,null,null,null,null,"Eletricidade - eólica",0,"kWh/t cana"]
[null,null,"Eletricidade - solar",0,"kWh/t cana",null,null,null,null,null,null,"Eletricidade - solar",0,"kWh/t cana",null,null,null,null,null,null,"Eletricidade - solar",0,"kWh/t cana"]

{"sheet":"F2","index":4,"n_rows":82,"n_cols":26,"rows_kept":82,"cut":false,"hidden":false,"merged":[[66,1,66,7],[66,10,66,16],[66,19,66,25],[41,1,41,7],[41,10,41,16],[41,19,41,25],[59,1,59,7],[59,10,59,16],[59,19,59,25],[33,1,33,7],[33,10,33,16],[33,19,33,25],[36,1,36,7],[36,10,36,16],[36,19,36,25],[29,1,29,7],[29,10,29,16],[29,19,29,25],[3,2,3,7],[5,2,5,7],[7,2,7,7],[9,2,9,3],[12,1,12,7],[12,10,12,16],[12,19,12,25],[13,1,13,7],[13,10,13,16],[13,19,13,25],[14,1,14,2],[17,3,17,6]]}
[]
[null,"Fornecedor de Cana-de-Açúcar"]
[]
[null,"Identificação do fornecedor:","Fornecedor Hipotético 2"]
[]
[null,"CNPJ/CPF:","00.000.000/0000-00"]
[]
[null,"Responsável pelo preenchimento:","GT ACV RenovaCalc"]
[]
[null,"Telefone :","(00) 0000-0000"]
[]
[]
[null,"Fornecedor",null,null,null,null,null,null,null,null,"Default - Cana",null,null,null,null,null,null,null,null,"Guarda dados de preenchimento"]
[null,"Informações gerais",null,null,null,null,null,null,null,null,"Informações gerais",null,null,null,null,null,null,null,null,"Informações gerais"]
[null,"Houve supressão de vegetação nativa a partir de 26 de dezembro de 2017?",null,"Não"]
[null,null,"Usina atende ao ZAE Cana?","Sim"]
[]
[null,null,"Número de registro no CAR (ou número de protocolo)","UF-1302405-E6D3.395B.6D27.4F42.AE22.DD56.987C.DD52"]
[]
[null,null,"Situação do CAR","Ativo"]
[]
[null,null,"Sistema de plantio","Convencional"]
[null,null,"Área total",1000,"ha"]
[]
[null,null,"Produção total colhida para moagem",66735.200100000002,"t cana"]
[null,null,"Teor de impurezas vegetais (base úmida)",50,"kg/t cana","Umidade",0.5]
[null,null,"Teor de impurezas minerais",20,"kg/t cana"]
[null,null,"Palha recolhida (base seca)",0,"t palha"]
[]
[null,"Tipo de preenchimento",null,null,null,null,null,null,null,null,"Tipo de preenchimento",null,null,null,null,null,null,null,null,"Tipo de preenchimento"]
[null,"Tipo de dados forneceidos pelo fornecedor:",null,null,null,null,null,null,null,null,null,null,"Padrão",null,null,null,null,null,null,null,null,"Primários"]
[null,{"$f":"V31","v":"Primários"}]
[]
[null,"Área Queimada",null,null,null,null,null,null,null,null,"Área Queimada",null,null,null,null,null,null,null,null,"Área Queimada"]
[null,null,"Área queimada",184,"ha",null,null,null,null,null,null,"Área queimada",1,"% da área total",null,null,null,null,null,null,"Área queimada",184,"% da área total"]
[]
[null,"Corretivos",null,null,null,null,null,null,null,null,"Corretivos",null,null,null,null,null,null,null,null,"Corretivos"]
[null,null,"Calcário calcítico",0,"kg/t cana",null,null,null,null,null,null,"Calcário calcítico",0,"kg/t cana",null,null,null,null,null,null,"Calcário calcítico",0,"kg/t cana"]
[null,null,"Calcário dolomítico",5.79,"kg/t cana",null,null,null,null,null,null,"Calcário dolomítico",8.1059999999999999,"kg/t cana",null,null,null,null,null,null,"Calcário dolomítico",5.79,"kg/t cana"]
[null,null,"Gesso",2.79,"kg/t cana",null,null,null,null,null,null,"Gesso",3.9060000000000001,"kg/t cana",null,null,null,null,null,null,"Gesso",2.79,"kg/t cana"]
[]
[null,"Fertilizantes Sintéticos",null,null,null,null,null,null,null,null,"Fertilizantes Sintéticos",null,null,null,null,null,null,null,null,"Fertilizantes Sintéticos"]
[null,null,"Ureia",1.107,"kg N/t cana",null,null,null,null,null,null,"Ureia",1.5498000000000001," kg N/TC",null,null,null,null,null,null,"Ureia",1.107," kg N/TC"]
[null,null,"Fosfato monoamônico (MAP)",0,"kg N/t cana",null,null,null,null,null,null,"Fosfato monoamônico (MAP)",0," kg N/TC",null,null,null,null,null,null,"Fosfato monoamônico (MAP)",0," kg N/TC"]
[null,null,"Fosfato monoamônico (MAP)",0,"kg P₂O₅/t cana",null,null,null,null,null,null,"Fosfato monoamônico (MAP)",0," kg P2O5/TC",null,null,null,null,null,null,"Fosfato monoamônico (MAP)",0," kg P2O5/TC"]
[null,null,"Fosfato diamônico (DAP)",0,"kg N/t cana",null,null,null,null,null,null,"Fosfato diamônico (DAP)",0," kg N/TC",null,null,null,null,null,null,"Fosfato diamônico (DAP)",0," kg N/TC"]
[null,null,"Fosfato diamônico (DAP)",0,"kg P₂O₅/t cana",null,null,null,null,null,null,"Fosfato diamônico (DAP)",0," kg P2O5/TC",null,null,null,null,null,null,"Fosfato diamônico (DAP)",0," kg P2O5/TC"]
[null,null,"Nitrato de amônio",0,"kg N/t cana",null,null,null,null,null,null,"Nitrato de amônio",0," kg N/TC",null,null,null,null,null,null,"Nitrato de amônio",0," kg N/TC"]
[null,null,"Solução de nitrato de amônio e ureia (UAN)",0,"kg N/t cana",null,null,null,null,null,null,"Solução de nitrato de amônio e ureia (UAN)",0," kg N/TC",null,null,null,null,null,null,"Solução de nitrato de amônio e ureia (UAN)",0," kg N/TC"]
[null,null,"Amônia anidra",0,"kg N/t cana",null,null,null,null,null,null,"Amônia anidra",0," kg N/TC",null,null,null,null,null,null,"Amônia anidra",0," kg N/TC"]
[null,null,"Sulfato de amônio",0,"kg N/t cana",null,null,null,null,null,null,"Sulfato de amônio",0," kg N/TC",null,null,null,null,null,null,"Sulfato de amônio",0," kg N/TC"]
[null,null,"Nitrato de amônio e cálcio (CAN)",0,"kg N/t cana",null,null,null,null,null,null,"Nitrato de amônio e cálcio (CAN)",0," kg N/TC",null,null,null,null,null,null,"Nitrato de amônio e cálcio (CAN)",0," kg N/TC"]
[null,null,"Superfosfato simples (SSP)",0.443898833367118,"kg P₂O₅/t cana",null,null,null,null,null,null,"Superfosfato simples (SSP)",0.62145836671396526," kg P2O5/TC",null,null,null,null,null,null,"Superfosfato simples (SSP)",0.443898833367118," kg P2O5/TC"]
[null,null,"Superfosfato triplo (TSP)",0,"kg P₂O₅/t cana",null,null,null,null,null,null,"Superfosfato triplo (TSP)",0," kg P2O5/TC",null,null,null,null,null,null,"Superfosfato triplo (TSP)",0," kg P2O5/TC"]
[null,null,"Cloreto de potássio (KCl)",1.3462049016245501,"kg K₂O/t cana",null,null,null,null,null,null,"Cloreto de potássio (KCl)",1.8846868622743767," kg K2O/TC",null,null,null,null,null,null,"Cloreto de potássio (KCl)",1.3462049016245501," kg K2O/TC"]
[null,"Outros","especificar",0,"kg N/t cana",null,null,null,null,null,"Outros ","especificar",0," kg N /TC",null,null,null,null,null,"Outros ","especificar",0," kg N /TC"]
[null,"Outros","especificar",0,"kg P₂O₅/t cana",null,null,null,null,null,"Outros ","especificar",0," kg P2O5/TC",null,null,null,null,null,"Outros ","especificar",0," kg P2O5/TC"]
[null,"Outros","especificar",0,"kg K₂O/t cana",null,null,null,null,null,"Outros ","especificar",0," kg K2O/TC",null,null,null,null,null,"Outros ","especificar",0," kg K2O/TC"]
[]
[null,"Fertilizantes Orgânicos/Organominerais",null,null,null,null,null,null,null,null,"Fertilizantes Orgânicos/Organominerais",null,null,null,null,null,null,null,null,"Fertilizantes Orgânicos/Organominerais"]
[null,null,"Vinhaça",440.2,"L/t cana","Concentração de N",0.375,"g N/L",null,null,null,"Vinhaça",616.28,"L/t cana","Concentração de N",0.375,"g N/L",null,null,null,"Vinhaça",440.2,"L/t cana","Concentração de N",0.375,"g N/L"]
[null,null,"Torta de Filtro (base úmida)",30.571428571428577,"kg/t cana","Concentração de N",14,"g N/kg",null,null,null,"Torta de Filtro (base úmida)",42.800000000000011,"kg/t cana","Concentração de N",14,"g N/kg",null,null,null,"Torta de Filtro (base úmida)",30.571428571428577,"kg/t cana","Concentração de N",14,"g N/kg"]
[null,null,"Cinzas e fuligem (base úmida)",7.2,"kg/t cana","Concentração de N",null,"g N/kg",null,null,null,"Cinzas e fuligem (base úmida)",10.08,"kg/t cana","Concentração de N",null,"g N/kg",null,null,null,"Cinzas e fuligem (base úmida)",7.2,"kg/t cana","Concentração de N",null,"g N/kg"]
[null,"Outros","especificar",0,"kg/t cana","Concentração de N",null,"g N/kg",null,null,"Outros","especificar",0,"kg/t cana","Concentração de N",null,"g N/kg",null,null,"Outros","especificar",0,"kg/t cana","Concentração de N",null,"g N/kg"]
[null,"Outros","especificar",0,"kg/t cana","Concentração de N",null,"g N/kg",null,null,"Outros","especificar",0,"kg/t cana","Concentração de N",null,"g N/kg",null,null,"Outros","especificar",0,"kg/t cana","Concentração de N",null,"g N/kg"]
[]
[null,"Combustíveis e eletricidade da rede",null,null,null,null,null,null,null,null,"Combustíveis e eletricidade da rede",null,null,null,null,null,null,null,null,"Combustíveis e eletricidade da rede"]
[null,null,"Diesel - B8",3.18,"L/t cana",null,null,null,null,null,null,"Diesel - B8",4.452,"L/t cana",null,null,null,null,null,null,"Diesel - B8",3.18,"L/t cana"]
[null,null,"Diesel - B10",0,"L/t cana",null,null,null,null,null,null,"Diesel - B10",0,"L/t cana",null,null,null,null,null,null,"Diesel - B10",0,"L/t cana"]
[null,null,"Diesel - BX",0,"L/t cana","Teor de biodiesel na mistura",0.11,null,null,null,null,"Diesel - BX",0,"L/t cana","Teor médio de biodiesel na mistura",0.11,"%",null,null,null,"Diesel - BX",0,"L/t cana","Teor médio de biodiesel na mistura",0.11,"%"]
[null,null,"Diesel - B20",0,"L/t cana",null,null,null,null,null,null,"Diesel - B20",0,"L/t cana",null,null,null,null,null,null,"Diesel - B20",0,"L/t cana"]
[null,null,"Diesel - B30",0,"L/t cana",null,null,null,null,null,null,"Diesel - B30",0,"L/t cana",null,null,null,null,null,null,"Diesel - B30",0,"L/t cana"]
[null,null,"Biodiesel - B100",0,"L/t cana",null,null,null,null,null,null,"Biodiesel - B100",0,"L/t cana",null,null,null,null,null,null,"Biodiesel - B100",0,"L/t cana"]
[null,null,"Gasolina C",0,"L/t cana",null,null,null,null,null,null,"Gasolina C",0,"L/t cana",null,null,null,null,null,null,"Gasolina C",0,"L/t cana"]
[null,null,"Etanol hidratado",0,"L/t cana",null,null,null,null,null,null,"Etanol hidratado",0,"L/t cana",null,null,null,null,null,null,"Etanol hidratado",0,"L/t cana"]
[null,null,"Biometano de terceiros",0,"Nm³/t cana",null,null,null,null,null,null,"Biometano de terceiros",0,"Nm³/t cana",null,null,null,null,null,null,"Biometano de terceiros",0,"Nm³/t cana"]
[null,null,"Biometano próprio",0,"Nm³/t cana",null,null,null,null,null,null,"Biometano próprio",0,"Nm³/t cana",null,null,null,null,null,null,"Biometano próprio",0,"Nm³/t cana"]
[null,null,"Eletricidade da rede - mix médio",0,"kWh/t cana",null,null,null,null,null,null,"Eletricidade da rede - mix médio",0,"kWh/t cana",null,null,null,null,null,null,"Eletricidade da rede - mix médio",0,"kWh/t cana"]
[null,null,"Eletricidade - PCH",0,"kWh/t cana",null,null,null,null,null,null,"Eletricidade - PCH",0,"kWh/t cana",null,null,null,null,null,null,"Eletricidade - PCH",0,"kWh/t cana"]
[null,null,"Eletricidade - biomassa",0,"kWh/t cana",null,null,null,null,null,null,"Eletricidade - biomassa",0,"kWh/t cana",null,null,null,null,null,null,"Eletricidade - biomassa",0,"kWh/t cana"]
[null,null,"Eletricidade - eólica",0,"kWh/t cana",null,null,null,null,null,null,"Eletricidade - eólica",0,"kWh/t cana",null,null,null,null,null,null,"Eletricidade - eólica",0,"kWh/t cana"]
[null,null,"Eletricidade - solar",0,"kWh/t cana",null,null,null,null,null,null,"Eletricidade - solar",0,"kWh/t cana",null,null,null,null,null,null,"Eletricidade - solar",0,"kWh/t cana"]

{"sheet":"F3","index":5,"n_rows":82,"n_cols":26,"rows_kept":82,"cut":false,"hidden":false,"merged":[[66,1,66,7],[66,10,66,16],[66,19,66,25],[41,1,41,7],[41,10,41,16],[41,19,41,25],[59,1,59,7],[59,10,59,16],[59,19,59,25],[33,1,33,7],[33,10,33,16],[33,19,33,25],[36,1,36,7],[36,10,36,16],[36,19,36,25],[29,1,29,7],[29,10,29,16],[29,19,29,25],[3,2,3,7],[5,2,5,7],[7,2,7,7],[9,2,9,3],[12,1,12,7],[12,10,12,16],[12,19,12,25],[13,1,13,7],[13,10,13,16],[13,19,13,25],[14,1,14,2],[17,3,17,6]]}
[]
[null,"Fornecedor de Cana-de-Açúcar"]
[]
[null,"Identificação do fornecedor:","Fornecedor Hipotético 3"]
[]
[null,"CNPJ/CPF:","00.000.000/0000-00"]
[]
[null,"Responsável pelo preenchimento:","GT ACV RenovaCalc"]
[]
[null,"Telefone :","(00) 0000-0000"]
[]
[]
[null,"Fornecedor",null,null,null,null,null,null,null,null,"Default - Cana",null,null,null,null,null,null,null,null,"Guarda dados de preenchimento"]
[null,"Informações gerais",null,null,null,null,null,null,null,null,"Informações gerais",null,null,null,null,null,null,null,null,"Informações gerais"]
[null,"Houve supressão de vegetação nativa a partir de 26 de dezembro de 2017?",null,"Não"]
[null,null,"Usina atende ao ZAE Cana?","Sim"]
[]
[null,null,"Número de registro no CAR (ou número de protocolo)","UF-1302405-E6D3.395B.6D27.4F42.AE22.DD56.987C.DD53"]
[]
[null,null,"Situação do CAR","Ativo"]
[]
[null,null,"Sistema de plantio","Convencional"]
[null,null,"Área total",1000,"ha"]
[]
[null,null,"Produção total colhida para moagem",66735.200100000002,"t cana"]
[null,null,"Teor de impurezas vegetais (base úmida)",50,"kg/t cana","Umidade",0.5]
[null,null,"Teor de impurezas minerais",20,"kg/t cana"]
[null,null,"Palha recolhida (base seca)",0,"t palha"]
[]
[null,"Tipo de preenchimento",null,null,null,null,null,null,null,null,"Tipo de preenchimento",null,null,null,null,null,null,null,null,"Tipo de preenchimento"]
[null,"Tipo de dados forneceidos pelo fornecedor:",null,null,null,null,null,null,null,null,null,null,"Padrão",null,null,null,null,null,null,null,null,"Primários"]
[null,{"$f":"V31","v":"Primários"}]
[]
[null,"Área Queimada",null,null,null,null,null,null,null,null,"Área Queimada",null,null,null,null,null,null,null,null,"Área Queimada"]
[null,null,"Área queimada",184,"ha",null,null,null,null,null,null,"Área queimada",1,"% da área total",null,null,null,null,null,null,"Área queimada",184,"% da área total"]
[]
[null,"Corretivos",null,null,null,null,null,null,null,null,"Corretivos",null,null,null,null,null,null,null,null,"Corretivos"]
[null,null,"Calcário calcítico",0,"kg/t cana",null,null,null,null,null,null,"Calcário calcítico",0,"kg/t cana",null,null,null,null,null,null,"Calcário calcítico",0,"kg/t cana"]
[null,null,"Calcário dolomítico",5.79,"kg/t cana",null,null,null,null,null,null,"Calcário dolomítico",8.1059999999999999,"kg/t cana",null,null,null,null,null,null,"Calcário dolomítico",5.79,"kg/t cana"]
[null,null,"Gesso",2.79,"kg/t cana",null,null,null,null,null,null,"Gesso",3.9060000000000001,"kg/t cana",null,null,null,null,null,null,"Gesso",2.79,"kg/t cana"]
[]
[null,"Fertilizantes Sintéticos",null,null,null,null,null,null,null,null,"Fertilizantes Sintéticos",null,null,null,null,null,null,null,null,"Fertilizantes Sintéticos"]
[null,null,"Ureia",1.107,"kg N/t cana",null,null,null,null,null,null,"Ureia",1.5498000000000001," kg N/TC",null,null,null,null,null,null,"Ureia",1.107," kg N/TC"]
[null,null,"Fosfato monoamônico (MAP)",0,"kg N/t cana",null,null,null,null,null,null,"Fosfato monoamônico (MAP)",0," kg N/TC",null,null,null,null,null,null,"Fosfato monoamônico (MAP)",0," kg N/TC"]
[null,null,"Fosfato monoamônico (MAP)",0,"kg P₂O₅/t cana",null,null,null,null,null,null,"Fosfato monoamônico (MAP)",0," kg P2O5/TC",null,null,null,null,null,null,"Fosfato monoamônico (MAP)",0," kg P2O5/TC"]
[null,null,"Fosfato diamônico (DAP)",0,"kg N/t cana",null,null,null,null,null,null,"Fosfato diamônico (DAP)",0," kg N/TC",null,null,null,null,null,null,"Fosfato diamônico (DAP)",0," kg N/TC"]
[null,null,"Fosfato diamônico (DAP)",0,"kg P₂O₅/t cana",null,null,null,null,null,null,"Fosfato diamônico (DAP)",0," kg P2O5/TC",null,null,null,null,null,null,"Fosfato diamônico (DAP)",0," kg P2O5/TC"]
[null,null,"Nitrato de amônio",0,"kg N/t cana",null,null,null,null,null,null,"Nitrato de amônio",0," kg N/TC",null,null,null,null,null,null,"Nitrato de amônio",0," kg N/TC"]
[null,null,"Solução de nitrato de amônio e ureia (UAN)",0,"kg N/t cana",null,null,null,null,null,null,"Solução de nitrato de amônio e ureia (UAN)",0," kg N/TC",null,null,null,null,null,null,"Solução de nitrato de amônio e ureia (UAN)",0," kg N/TC"]
[null,null,"Amônia anidra",0,"kg N/t cana",null,null,null,null,null,null,"Amônia anidra",0," kg N/TC",null,null,null,null,null,null,"Amônia anidra",0," kg N/TC"]
[null,null,"Sulfato de amônio",0,"kg N/t cana",null,null,null,null,null,null,"Sulfato de amônio",0," kg N/TC",null,null,null,null,null,null,"Sulfato de amônio",0," kg N/TC"]
[null,null,"Nitrato de amônio e cálcio (CAN)",0,"kg N/t cana",null,null,null,null,null,null,"Nitrato de amônio e cálcio (CAN)",0," kg N/TC",null,null,null,null,null,null,"Nitrato de amônio e cálcio (CAN)",0," kg N/TC"]
[null,null,"Superfosfato simples (SSP)",0.443898833367118,"kg P₂O₅/t cana",null,null,null,null,null,null,"Superfosfato simples (SSP)",0.62145836671396526," kg P2O5/TC",null,null,null,null,null,null,"Superfosfato simples (SSP)",0.443898833367118," kg P2O5/TC"]
[null,null,"Superfosfato triplo (TSP)",0,"kg P₂O₅/t cana",null,null,null,null,null,null,"Superfosfato triplo (TSP)",0," kg P2O5/TC",null,null,null,null,null,null,"Superfosfato triplo (TSP)",0," kg P2O5/TC"]
[null,null,"Cloreto de potássio (KCl)",1.3462049016245501,"kg K₂O/t cana",null,null,null,null,null,null,"Cloreto de potássio (KCl)",1.8846868622743767," kg K2O/TC",null,null,null,null,null,null,"Cloreto de potássio (KCl)",1.3462049016245501," kg K2O/TC"]
[null,"Outros","especificar",0,"kg N/t cana",null,null,null,null,null,"Outros ","especificar",0," kg N /TC",null,null,null,null,null,"Outros ","especificar",0," kg N /TC"]
[null,"Outros","especificar",0,"kg P₂O₅/t cana",null,null,null,null,null,"Outros ","especificar",0," kg P2O5/TC",null,null,null,null,null,"Outros ","especificar",0," kg P2O5/TC"]
[null,"Outros","especificar",0,"kg K₂O/t cana",null,null,null,null,null,"Outros ","especificar",0," kg K2O/TC",null,null,null,null,null,"Outros ","especificar",0," kg K2O/TC"]
[]
[null,"Fertilizantes Orgânicos/Organominerais",null,null,null,null,null,null,null,null,"Fertilizantes Orgânicos/Organominerais",null,null,null,null,null,null,null,null,"Fertilizantes Orgânicos/Organominerais"]
[null,null,"Vinhaça",440.2,"L/t cana","Concentração de N",0.375,"g N/L",null,null,null,"Vinhaça",616.28,"L/t cana","Concentração de N",0.375,"g N/L",null,null,null,"Vinhaça",440.2,"L/t cana","Concentração de N",0.375,"g N/L"]
[null,null,"Torta de Filtro (base úmida)",30.571428571428577,"kg/t cana","Concentração de N",14,"g N/kg",null,null,null,"Torta de Filtro (base úmida)",42.800000000000011,"kg/t cana","Concentração de N",14,"g N/kg",null,null,null,"Torta de Filtro (base úmida)",30.571428571428577,"kg/t cana","Concentração de N",14,"g N/kg"]
[null,null,"Cinzas e fuligem (base úmida)",7.2,"kg/t cana","Concentração de N",null,"g N/kg",null,null,null,"Cinzas e fuligem (base úmida)",10.08,"kg/t cana","Concentração de N",null,"g N/kg",null,null,null,"Cinzas e fuligem (base úmida)",7.2,"kg/t cana","Concentração de N",null,"g N/kg"]
[null,"Outros","especificar",0,"kg/t cana","Concentração de N",null,"g N/kg",null,null,"Outros","especificar",0,"kg/t cana","Concentração de N",null,"g N/kg",null,null,"Outros","especificar",0,"kg/t cana","Concentração de N",null,"g N/kg"]
[null,"Outros","especificar",0,"kg/t cana","Concentração de N",null,"g N/kg",null,null,"Outros","especificar",0,"kg/t cana","Concentração de N",null,"g N/kg",null,null,"Outros","especificar",0,"kg/t cana","Concentração de N",null,"g N/kg"]
[]
[null,"Combustíveis e eletricidade da rede",null,null,null,null,null,null,null,null,"Combustíveis e eletricidade da rede",null,null,null,null,null,null,null,null,"Combustíveis e eletricidade da rede"]
[null,null,"Diesel - B8",3.18,"L/t cana",null,null,null,null,null,null,"Diesel - B8",4.452,"L/t cana",null,null,null,null,null,null,"Diesel - B8",3.18,"L/t cana"]
[null,null,"Diesel - B10",0,"L/t cana",null,null,null,null,null,null,"Diesel - B10",0,"L/t cana",null,null,null,null,null,null,"Diesel - B10",0,"L/t cana"]
[null,null,"Diesel - BX",0,"L/t cana","Teor de biodiesel na mistura",0.11,null,null,null,null,"Diesel - BX",0,"L/t cana","Teor médio de biodiesel na mistura",0.11,"%",null,null,null,"Diesel - BX",0,"L/t cana","Teor médio de biodiesel na mistura",0.11,"%"]
[null,null,"Diesel - B20",0,"L/t cana",null,null,null,null,null,null,"Diesel - B20",0,"L/t cana",null,null,null,null,null,null,"Diesel - B20",0,"L/t cana"]
[null,null,"Diesel - B30",0,"L/t cana",null,null,null,null,null,null,"Diesel - B30",0,"L/t cana",null,null,null,null,null,null,"Diesel - B30",0,"L/t cana"]
[null,null,"Biodiesel - B100",0,"L/t cana",null,null,null,null,null,null,"Biodiesel - B100",0,"L/t cana",null,null,null,null,null,null,"Biodiesel - B100",0,"L/t cana"]
[null,null,"Gasolina C",0,"L/t cana",null,null,null,null,null,null,"Gasolina C",0,"L/t cana",null,null,null,null,null,null,"Gasolina C",0,"L/t cana"]
[null,null,"Etanol hidratado",0,"L/t cana",null,null,null,null,null,null,"Etanol hidratado",0,"L/t cana",null,null,null,null,null,null,"Etanol hidratado",0,"L/t cana"]
[null,null,"Biometano de terceiros",0,"Nm³/t cana",null,null,null,null,null,null,"Biometano de terceiros",0,"Nm³/t cana",null,null,null,null,null,null,"Biometano de terceiros",0,"Nm³/t cana"]
[null,null,"Biometano próprio",0,"Nm³/t cana",null,null,null,null,null,null,"Biometano próprio",0,"Nm³/t cana",null,null,null,null,null,null,"Biometano próprio",0,"Nm³/t cana"]
[null,null,"Eletricidade da rede - mix médio",0,"kWh/t cana",null,null,null,null,null,null,"Eletricidade da rede - mix médio",0,"kWh/t cana",null,null,null,null,null,null,"Eletricidade da rede - mix médio",0,"kWh/t cana"]
[null,null,"Eletricidade - PCH",0,"kWh/t cana",null,null,null,null,null,null,"Eletricidade - PCH",0,"kWh/t cana",null,null,null,null,null,null,"Eletricidade - PCH",0,"kWh/t cana"]
[null,null,"Eletricidade - biomassa",0,"kWh/t cana",null,null,null,null,null,null,"Eletricidade - biomassa",0,"kWh/t cana",null,null,null,null,null,null,"Eletricidade - biomassa",0,"kWh/t cana"]
[null,null,"Eletricidade - eólica",0,"kWh/t cana",null,null,null,null,null,null,"Eletricidade - eólica",0,"kWh/t cana",null,null,null,null,null,null,"Eletricidade - eólica",0,"kWh/t cana"]
[null,null,"Eletricidade - solar",0,"kWh/t cana",null,null,null,null,null,null,"Eletricidade - solar",0,"kWh/t cana",null,null,null,null,null,null,"Eletricidade - solar",0,"kWh/t cana"]

{"sheet":"F4","index":6,"n_rows":82,"n_cols":26,"rows_kept":82,"cut":false,"hidden":false,"merged":[[66,1,66,7],[66,10,66,16],[66,19,66,25],[41,1,41,7],[41,10,41,16],[41,19,41,25],[59,1,59,7],[59,10,59,16],[59,19,59,25],[33,1,33,7],[33,10,33,16],[33,19,33,25],[36,1,36,7],[36,10,36,16],[36,19,36,25],[29,1,29,7],[29,10,29,16],[29,19,29,25],[3,2,3,7],[5,2,5,7],[7,2,7,7],[9,2,9,3],[12,1,12,7],[12,10,12,16],[12,19,12,25],[13,1,13,7],[13,10,13,16],[13,19,13,25],[14,1,14,2],[17,3,17,6]]}
[]
[null,"Fornecedor de Cana-de-Açúcar"]
[]
[null,"Identificação do fornecedor:","Fornecedor Hipotético 4"]
[]
[null,"CNPJ/CPF:","00.000.000/0000-00"]
[]
[null,"Responsável pelo preenchimento:","GT ACV RenovaCalc"]
[]
[null,"Telefone :","(00) 0000-0000"]
[]
[]
[null,"Fornecedor",null,null,null,null,null,null,null,null,"Default - Cana",null,null,null,null,null,null,null,null,"Guarda dados de preenchimento"]
[null,"Informações gerais",null,null,null,null,null,null,null,null,"Informações gerais",null,null,null,null,null,null,null,null,"Informações gerais"]
[null,"Houve supressão de vegetação nativa a partir de 26 de dezembro de 2017?",null,"Não"]
[null,null,"Usina atende ao ZAE Cana?","Sim"]
[]
[null,null,"Número de registro no CAR (ou número de protocolo)","UF-1302405-E6D3.395B.6D27.4F42.AE22.DD56.987C.DD54"]
[]
[null,null,"Situação do CAR","Ativo"]
[]
[null,null,"Sistema de plantio","Convencional"]
[null,null,"Área total",1000,"ha"]
[]
[null,null,"Produção total colhida para moagem",66735.200100000002,"t cana"]
[null,null,"Teor de impurezas vegetais (base úmida)",50,"kg/t cana","Umidade",0.5]
[null,null,"Teor de impurezas minerais",20,"kg/t cana"]
[null,null,"Palha recolhida (base seca)",0,"t palha"]
[]
[null,"Tipo de preenchimento",null,null,null,null,null,null,null,null,"Tipo de preenchimento",null,null,null,null,null,null,null,null,"Tipo de preenchimento"]
[null,"Tipo de dados forneceidos pelo fornecedor:",null,null,null,null,null,null,null,null,null,null,"Padrão",null,null,null,null,null,null,null,null,"Primários"]
[null,{"$f":"V31","v":"Primários"}]
[]
[null,"Área Queimada",null,null,null,null,null,null,null,null,"Área Queimada",null,null,null,null,null,null,null,null,"Área Queimada"]
[null,null,"Área queimada",184,"ha",null,null,null,null,null,null,"Área queimada",1,"% da área total",null,null,null,null,null,null,"Área queimada",184,"% da área total"]
[]
[null,"Corretivos",null,null,null,null,null,null,null,null,"Corretivos",null,null,null,null,null,null,null,null,"Corretivos"]
[null,null,"Calcário calcítico",0,"kg/t cana",null,null,null,null,null,null,"Calcário calcítico",0,"kg/t cana",null,null,null,null,null,null,"Calcário calcítico",0,"kg/t cana"]
[null,null,"Calcário dolomítico",5.79,"kg/t cana",null,null,null,null,null,null,"Calcário dolomítico",8.1059999999999999,"kg/t cana",null,null,null,null,null,null,"Calcário dolomítico",5.79,"kg/t cana"]
[null,null,"Gesso",2.79,"kg/t cana",null,null,null,null,null,null,"Gesso",3.9060000000000001,"kg/t cana",null,null,null,null,null,null,"Gesso",2.79,"kg/t cana"]
[]
[null,"Fertilizantes Sintéticos",null,null,null,null,null,null,null,null,"Fertilizantes Sintéticos",null,null,null,null,null,null,null,null,"Fertilizantes Sintéticos"]
[null,null,"Ureia",1.107,"kg N/t cana",null,null,null,null,null,null,"Ureia",1.5498000000000001," kg N/TC",null,null,null,null,null,null,"Ureia",1.107," kg N/TC"]
[null,null,"Fosfato monoamônico (MAP)",0,"kg N/t cana",null,null,null,null,null,null,"Fosfato monoamônico (MAP)",0," kg N/TC",null,null,null,null,null,null,"Fosfato monoamônico (MAP)",0," kg N/TC"]
[null,null,"Fosfato monoamônico (MAP)",0,"kg P₂O₅/t cana",null,null,null,null,null,null,"Fosfato monoamônico (MAP)",0," kg P2O5/TC",null,null,null,null,null,null,"Fosfato monoamônico (MAP)",0," kg P2O5/TC"]
[null,null,"Fosfato diamônico (DAP)",0,"kg N/t cana",null,null,null,null,null,null,"Fosfato diamônico (DAP)",0," kg N/TC",null,null,null,null,null,null,"Fosfato diamônico (DAP)",0," kg N/TC"]
[null,null,"Fosfato diamônico (DAP)",0,"kg P₂O₅/t cana",null,null,null,null,null,null,"Fosfato diamônico (DAP)",0," kg P2O5/TC",null,null,null,null,null,null,"Fosfato diamônico (DAP)",0," kg P2O5/TC"]
[null,null,"Nitrato de amônio",0,"kg N/t cana",null,null,null,null,null,null,"Nitrato de amônio",0," kg N/TC",null,null,null,null,null,null,"Nitrato de amônio",0," kg N/TC"]
[null,null,"Solução de nitrato de amônio e ureia (UAN)",0,"kg N/t cana",null,null,null,null,null,null,"Solução de nitrato de amônio e ureia (UAN)",0," kg N/TC",null,null,null,null,null,null,"Solução de nitrato de amônio e ureia (UAN)",0," kg N/TC"]
[null,null,"Amônia anidra",0,"kg N/t cana",null,null,null,null,null,null,"Amônia anidra",0," kg N/TC",null,null,null,null,null,null,"Amônia anidra",0," kg N/TC"]
[null,null,"Sulfato de amônio",0,"kg N/t cana",null,null,null,null,null,null,"Sulfato de amônio",0," kg N/TC",null,null,null,null,null,null,"Sulfato de amônio",0," kg N/TC"]
[null,null,"Nitrato de amônio e cálcio (CAN)",0,"kg N/t cana",null,null,null,null,null,null,"Nitrato de amônio e cálcio (CAN)",0," kg N/TC",null,null,null,null,null,null,"Nitrato de amônio e cálcio (CAN)",0," kg N/TC"]
[null,null,"Superfosfato simples (SSP)",0.443898833367118,"kg P₂O₅/t cana",null,null,null,null,null,null,"Superfosfato simples (SSP)",0.62145836671396526," kg P2O5/TC",null,null,null,null,null,null,"Superfosfato simples (SSP)",0.443898833367118," kg P2O5/TC"]
[null,null,"Superfosfato triplo (TSP)",0,"kg P₂O₅/t cana",null,null,null,null,null,null,"Superfosfato triplo (TSP)",0," kg P2O5/TC",null,null,null,null,null,null,"Superfosfato triplo (TSP)",0," kg P2O5/TC"]
[null,null,"Cloreto de potássio (KCl)",1.3462049016245501,"kg K₂O/t cana",null,null,null,null,null,null,"Cloreto de potássio (KCl)",1.8846868622743767," kg K2O/TC",null,null,null,null,null,null,"Cloreto de potássio (KCl)",1.3462049016245501," kg K2O/TC"]
[null,"Outros","especificar",0,"kg N/t cana",null,null,null,null,null,"Outros ","especificar",0," kg N /TC",null,null,null,null,null,"Outros ","especificar",0," kg N /TC"]
[null,"Outros","especificar",0,"kg P₂O₅/t cana",null,null,null,null,null,"Outros ","especificar",0," kg P2O5/TC",null,null,null,null,null,"Outros ","especificar",0," kg P2O5/TC"]
[null,"Outros","especificar",0,"kg K₂O/t cana",null,null,null,null,null,"Outros ","especificar",0," kg K2O/TC",null,null,null,null,null,"Outros ","especificar",0," kg K2O/TC"]
[]
[null,"Fertilizantes Orgânicos/Organominerais",null,null,null,null,null,null,null,null,"Fertilizantes Orgânicos/Organominerais",null,null,null,null,null,null,null,null,"Fertilizantes Orgânicos/Organominerais"]
[null,null,"Vinhaça",440.2,"L/t cana","Concentração de N",0.375,"g N/L",null,null,null,"Vinhaça",616.28,"L/t cana","Concentração de N",0.375,"g N/L",null,null,null,"Vinhaça",440.2,"L/t cana","Concentração de N",0.375,"g N/L"]
[null,null,"Torta de Filtro (base úmida)",30.571428571428577,"kg/t cana","Concentração de N",14,"g N/kg",null,null,null,"Torta de Filtro (base úmida)",42.800000000000011,"kg/t cana","Concentração de N",14,"g N/kg",null,null,null,"Torta de Filtro (base úmida)",30.571428571428577,"kg/t cana","Concentração de N",14,"g N/kg"]
[null,null,"Cinzas e fuligem (base úmida)",7.2,"kg/t cana","Concentração de N",null,"g N/kg",null,null,null,"Cinzas e fuligem (base úmida)",10.08,"kg/t cana","Concentração de N",null,"g N/kg",null,null,null,"Cinzas e fuligem (base úmida)",7.2,"kg/t cana","Concentração de N",null,"g N/kg"]
[null,"Outros","especificar",0,"kg/t cana","Concentração de N",null,"g N/kg",null,null,"Outros","especificar",0,"kg/t cana","Concentração de N",null,"g N/kg",null,null,"Outros","especificar",0,"kg/t cana","Concentração de N",null,"g N/kg"]
[null,"Outros","especificar",0,"kg/t cana","Concentração de N",null,"g N/kg",null,null,"Outros","especificar",0,"kg/t cana","Concentração de N",null,"g N/kg",null,null,"Outros","especificar",0,"kg/t cana","Concentração de N",null,"g N/kg"]
[]
[null,"Combustíveis e eletricidade da rede",null,null,null,null,null,null,null,null,"Combustíveis e eletricidade da rede",null,null,null,null,null,null,null,null,"Combustíveis e eletricidade da rede"]
[null,null,"Diesel - B8",3.18,"L/t cana",null,null,null,null,null,null,"Diesel - B8",4.452,"L/t cana",null,null,null,null,null,null,"Diesel - B8",3.18,"L/t cana"]
[null,null,"Diesel - B10",0,"L/t cana",null,null,null,null,null,null,"Diesel - B10",0,"L/t cana",null,null,null,null,null,null,"Diesel - B10",0,"L/t cana"]
[null,null,"Diesel - BX",0,"L/t cana","Teor de biodiesel na mistura",0.11,null,null,null,null,"Diesel - BX",0,"L/t cana","Teor médio de biodiesel na mistura",0.11,"%",null,null,null,"Diesel - BX",0,"L/t cana","Teor médio de biodiesel na mistura",0.11,"%"]
[null,null,"Diesel - B20",0,"L/t cana",null,null,null,null,null,null,"Diesel - B20",0,"L/t cana",null,null,null,null,null,null,"Diesel - B20",0,"L/t cana"]
[null,null,"Diesel - B30",0,"L/t cana",null,null,null,null,null,null,"Diesel - B30",0,"L/t cana",null,null,null,null,null,null,"Diesel - B30",0,"L/t cana"]
[null,null,"Biodiesel - B100",0,"L/t cana",null,null,null,null,null,null,"Biodiesel - B100",0,"L/t cana",null,null,null,null,null,null,"Biodiesel - B100",0,"L/t cana"]
[null,null,"Gasolina C",0,"L/t cana",null,null,null,null,null,null,"Gasolina C",0,"L/t cana",null,null,null,null,null,null,"Gasolina C",0,"L/t cana"]
[null,null,"Etanol hidratado",0,"L/t cana",null,null,null,null,null,null,"Etanol hidratado",0,"L/t cana",null,null,null,null,null,null,"Etanol hidratado",0,"L/t cana"]
[null,null,"Biometano de terceiros",0,"Nm³/t cana",null,null,null,null,null,null,"Biometano de terceiros",0,"Nm³/t cana",null,null,null,null,null,null,"Biometano de terceiros",0,"Nm³/t cana"]
[null,null,"Biometano próprio",0,"Nm³/t cana",null,null,null,null,null,null,"Biometano próprio",0,"Nm³/t cana",null,null,null,null,null,null,"Biometano próprio",0,"Nm³/t cana"]
[null,null,"Eletricidade da rede - mix médio",0,"kWh/t cana",null,null,null,null,null,null,"Eletricidade da rede - mix médio",0,"kWh/t cana",null,null,null,null,null,null,"Eletricidade da rede - mix médio",0,"kWh/t cana"]
[null,null,"Eletricidade - PCH",0,"kWh/t cana",null,null,null,null,null,null,"Eletricidade - PCH",0,"kWh/t cana",null,null,null,null,null,null,"Eletricidade - PCH",0,"kWh/t cana"]
[null,null,"Eletricidade - biomassa",0,"kWh/t cana",null,null,null,null,null,null,"Eletricidade - biomassa",0,"kWh/t cana",null,null,null,null,null,null,"Eletricidade - biomassa",0,"kWh/t cana"]
[null,null,"Eletricidade - eólica",0,"kWh/t cana",null,null,null,null,null,null,"Eletricidade - eólica",0,"kWh/t cana",null,null,null,null,null,null,"Eletricidade - eólica",0,"kWh/t cana"]
[null,null,"Eletricidade - solar",0,"kWh/t cana",null,null,null,null,null,null,"Eletricidade - solar",0,"kWh/t cana",null,null,null,null,null,null,"Eletricidade - solar",0,"kWh/t cana"]

{"sheet":"F5","index":7,"n_rows":82,"n_cols":26,"rows_kept":82,"cut":false,"hidden":false,"merged":[[66,1,66,7],[66,10,66,16],[66,19,66,25],[41,1,41,7],[41,10,41,16],[41,19,41,25],[59,1,59,7],[59,10,59,16],[59,19,59,25],[33,1,33,7],[33,10,33,16],[33,19,33,25],[36,1,36,7],[36,10,36,16],[36,19,36,25],[29,1,29,7],[29,10,29,16],[29,19,29,25],[3,2,3,7],[5,2,5,7],[7,2,7,7],[9,2,9,3],[12,1,12,7],[12,10,12,16],[12,19,12,25],[13,1,13,7],[13,10,13,16],[13,19,13,25],[14,1,14,2],[17,3,17,6]]}
[]
[null,"Fornecedor de Cana-de-Açúcar"]
[]
[null,"Identificação do fornecedor:","Fornecedor Hipotético 5"]
[]
[null,"CNPJ/CPF:","00.000.000/0000-00"]
[]
[null,"Responsável pelo preenchimento:","GT ACV RenovaCalc"]
[]
[null,"Telefone :","(00) 0000-0000"]
[]
[]
[null,"Fornecedor",null,null,null,null,null,null,null,null,"Default - Cana",null,null,null,null,null,null,null,null,"Guarda dados de preenchimento"]
[null,"Informações gerais",null,null,null,null,null,null,null,null,"Informações gerais",null,null,null,null,null,null,null,null,"Informações gerais"]
[null,"Houve supressão de vegetação nativa a partir de 26 de dezembro de 2017?",null,"Não"]
[null,null,"Usina atende ao ZAE Cana?","Sim"]
[]
[null,null,"Número de registro no CAR (ou número de protocolo)","UF-1302405-E6D3.395B.6D27.4F42.AE22.DD56.987C.DD55"]
[]
[null,null,"Situação do CAR","Ativo"]
[]
[null,null,"Sistema de plantio","Convencional"]
[null,null,"Área total",1000,"ha"]
[]
[null,null,"Produção total colhida para moagem",66735.200100000002,"t cana"]
[null,null,"Teor de impurezas vegetais (base úmida)",50,"kg/t cana","Umidade",0.5]
[null,null,"Teor de impurezas minerais",20,"kg/t cana"]
[null,null,"Palha recolhida (base seca)",0,"t palha"]
[]
[null,"Tipo de preenchimento",null,null,null,null,null,null,null,null,"Tipo de preenchimento",null,null,null,null,null,null,null,null,"Tipo de preenchimento"]
[null,"Tipo de dados forneceidos pelo fornecedor:",null,null,null,null,null,null,null,null,null,null,"Padrão",null,null,null,null,null,null,null,null,"Primários"]
[null,{"$f":"V31","v":"Primários"}]
[]
[null,"Área Queimada",null,null,null,null,null,null,null,null,"Área Queimada",null,null,null,null,null,null,null,null,"Área Queimada"]
[null,null,"Área queimada",184,"ha",null,null,null,null,null,null,"Área queimada",1,"% da área total",null,null,null,null,null,null,"Área queimada",184,"% da área total"]
[]
[null,"Corretivos",null,null,null,null,null,null,null,null,"Corretivos",null,null,null,null,null,null,null,null,"Corretivos"]
[null,null,"Calcário calcítico",0,"kg/t cana",null,null,null,null,null,null,"Calcário calcítico",0,"kg/t cana",null,null,null,null,null,null,"Calcário calcítico",0,"kg/t cana"]
[null,null,"Calcário dolomítico",5.79,"kg/t cana",null,null,null,null,null,null,"Calcário dolomítico",8.1059999999999999,"kg/t cana",null,null,null,null,null,null,"Calcário dolomítico",5.79,"kg/t cana"]
[null,null,"Gesso",2.79,"kg/t cana",null,null,null,null,null,null,"Gesso",3.9060000000000001,"kg/t cana",null,null,null,null,null,null,"Gesso",2.79,"kg/t cana"]
[]
[null,"Fertilizantes Sintéticos",null,null,null,null,null,null,null,null,"Fertilizantes Sintéticos",null,null,null,null,null,null,null,null,"Fertilizantes Sintéticos"]
[null,null,"Ureia",1.107,"kg N/t cana",null,null,null,null,null,null,"Ureia",1.5498000000000001," kg N/TC",null,null,null,null,null,null,"Ureia",1.107," kg N/TC"]
[null,null,"Fosfato monoamônico (MAP)",0,"kg N/t cana",null,null,null,null,null,null,"Fosfato monoamônico (MAP)",0," kg N/TC",null,null,null,null,null,null,"Fosfato monoamônico (MAP)",0," kg N/TC"]
[null,null,"Fosfato monoamônico (MAP)",0,"kg P₂O₅/t cana",null,null,null,null,null,null,"Fosfato monoamônico (MAP)",0," kg P2O5/TC",null,null,null,null,null,null,"Fosfato monoamônico (MAP)",0," kg P2O5/TC"]
[null,null,"Fosfato diamônico (DAP)",0,"kg N/t cana",null,null,null,null,null,null,"Fosfato diamônico (DAP)",0," kg N/TC",null,null,null,null,null,null,"Fosfato diamônico (DAP)",0," kg N/TC"]
[null,null,"Fosfato diamônico (DAP)",0,"kg P₂O₅/t cana",null,null,null,null,null,null,"Fosfato diamônico (DAP)",0," kg P2O5/TC",null,null,null,null,null,null,"Fosfato diamônico (DAP)",0," kg P2O5/TC"]
[null,null,"Nitrato de amônio",0,"kg N/t cana",null,null,null,null,null,null,"Nitrato de amônio",0," kg N/TC",null,null,null,null,null,null,"Nitrato de amônio",0," kg N/TC"]
[null,null,"Solução de nitrato de amônio e ureia (UAN)",0,"kg N/t cana",null,null,null,null,null,null,"Solução de nitrato de amônio e ureia (UAN)",0," kg N/TC",null,null,null,null,null,null,"Solução de nitrato de amônio e ureia (UAN)",0," kg N/TC"]
[null,null,"Amônia anidra",0,"kg N/t cana",null,null,null,null,null,null,"Amônia anidra",0," kg N/TC",null,null,null,null,null,null,"Amônia anidra",0," kg N/TC"]
[null,null,"Sulfato de amônio",0,"kg N/t cana",null,null,null,null,null,null,"Sulfato de amônio",0," kg N/TC",null,null,null,null,null,null,"Sulfato de amônio",0," kg N/TC"]
[null,null,"Nitrato de amônio e cálcio (CAN)",0,"kg N/t cana",null,null,null,null,null,null,"Nitrato de amônio e cálcio (CAN)",0," kg N/TC",null,null,null,null,null,null,"Nitrato de amônio e cálcio (CAN)",0," kg N/TC"]
[null,null,"Superfosfato simples (SSP)",0.443898833367118,"kg P₂O₅/t cana",null,null,null,null,null,null,"Superfosfato simples (SSP)",0.62145836671396526," kg P2O5/TC",null,null,null,null,null,null,"Superfosfato simples (SSP)",0.443898833367118," kg P2O5/TC"]
[null,null,"Superfosfato triplo (TSP)",0,"kg P₂O₅/t cana",null,null,null,null,null,null,"Superfosfato triplo (TSP)",0," kg P2O5/TC",null,null,null,null,null,null,"Superfosfato triplo (TSP)",0," kg P2O5/TC"]
[null,null,"Cloreto de potássio (KCl)",1.3462049016245501,"kg K₂O/t cana",null,null,null,null,null,null,"Cloreto de potássio (KCl)",1.8846868622743767," kg K2O/TC",null,null,null,null,null,null,"Cloreto de potássio (KCl)",1.3462049016245501," kg K2O/TC"]
[null,"Outros","especificar",0,"kg N/t cana",null,null,null,null,null,"Outros ","especificar",0," kg N /TC",null,null,null,null,null,"Outros ","especificar",0," kg N /TC"]
[null,"Outros","especificar",0,"kg P₂O₅/t cana",null,null,null,null,null,"Outros ","especificar",0," kg P2O5/TC",null,null,null,null,null,"Outros ","especificar",0," kg P2O5/TC"]
[null,"Outros","especificar",0,"kg K₂O/t cana",null,null,null,null,null,"Outros ","especificar",0," kg K2O/TC",null,null,null,null,null,"Outros ","especificar",0," kg K2O/TC"]
[]
[null,"Fertilizantes Orgânicos/Organominerais",null,null,null,null,null,null,null,null,"Fertilizantes Orgânicos/Organominerais",null,null,null,null,null,null,null,null,"Fertilizantes Orgânicos/Organominerais"]
[null,null,"Vinhaça",440.2,"L/t cana","Concentração de N",0.375,"g N/L",null,null,null,"Vinhaça",616.28,"L/t cana","Concentração de N",0.375,"g N/L",null,null,null,"Vinhaça",440.2,"L/t cana","Concentração de N",0.375,"g N/L"]
[null,null,"Torta de Filtro (base úmida)",30.571428571428577,"kg/t cana","Concentração de N",14,"g N/kg",null,null,null,"Torta de Filtro (base úmida)",42.800000000000011,"kg/t cana","Concentração de N",14,"g N/kg",null,null,null,"Torta de Filtro (base úmida)",30.571428571428577,"kg/t cana","Concentração de N",14,"g N/kg"]
[null,null,"Cinzas e fuligem (base úmida)",7.2,"kg/t cana","Concentração de N",null,"g N/kg",null,null,null,"Cinzas e fuligem (base úmida)",10.08,"kg/t cana","Concentração de N",null,"g N/kg",null,null,null,"Cinzas e fuligem (base úmida)",7.2,"kg/t cana","Concentração de N",null,"g N/kg"]
[null,"Outros","especificar",0,"kg/t cana","Concentração de N",null,"g N/kg",null,null,"Outros","especificar",0,"kg/t cana","Concentração de N",null,"g N/kg",null,null,"Outros","especificar",0,"kg/t cana","Concentração de N",null,"g N/kg"]
[null,"Outros","especificar",0,"kg/t cana","Concentração de N",null,"g N/kg",null,null,"Outros","especificar",0,"kg/t cana","Concentração de N",null,"g N/kg",null,null,"Outros","especificar",0,"kg/t cana","Concentração de N",null,"g N/kg"]
[]
[null,"Combustíveis e eletricidade da rede",null,null,null,null,null,null,null,null,"Combustíveis e eletricidade da rede",null,null,null,null,null,null,null,null,"Combustíveis e eletricidade da rede"]
[null,null,"Diesel - B8",3.18,"L/t cana",null,null,null,null,null,null,"Diesel - B8",4.452,"L/t cana",null,null,null,null,null,null,"Diesel - B8",3.18,"L/t cana"]
[null,null,"Diesel - B10",0,"L/t cana",null,null,null,null,null,null,"Diesel - B10",0,"L/t cana",null,null,null,null,null,null,"Diesel - B10",0,"L/t cana"]
[null,null,"Diesel - BX",0,"L/t cana","Teor de biodiesel na mistura",0.11,null,null,null,null,"Diesel - BX",0,"L/t cana","Teor médio de biodiesel na mistura",0.11,"%",null,null,null,"Diesel - BX",0,"L/t cana","Teor médio de biodiesel na mistura",0.11,"%"]
[null,null,"Diesel - B20",0,"L/t cana",null,null,null,null,null,null,"Diesel - B20",0,"L/t cana",null,null,null,null,null,null,"Diesel - B20",0,"L/t cana"]
[null,null,"Diesel - B30",0,"L/t cana",null,null,null,null,null,null,"Diesel - B30",0,"L/t cana",null,null,null,null,null,null,"Diesel - B30",0,"L/t cana"]
[null,null,"Biodiesel - B100",0,"L/t cana",null,null,null,null,null,null,"Biodiesel - B100",0,"L/t cana",null,null,null,null,null,null,"Biodiesel - B100",0,"L/t cana"]
[null,null,"Gasolina C",0,"L/t cana",null,null,null,null,null,null,"Gasolina C",0,"L/t cana",null,null,null,null,null,null,"Gasolina C",0,"L/t cana"]
[null,null,"Etanol hidratado",0,"L/t cana",null,null,null,null,null,null,"Etanol hidratado",0,"L/t cana",null,null,null,null,null,null,"Etanol hidratado",0,"L/t cana"]
[null,null,"Biometano de terceiros",0,"Nm³/t cana",null,null,null,null,null,null,"Biometano de terceiros",0,"Nm³/t cana",null,null,null,null,null,null,"Biometano de terceiros",0,"Nm³/t cana"]
[null,null,"Biometano próprio",0,"Nm³/t cana",null,null,null,null,null,null,"Biometano próprio",0,"Nm³/t cana",null,null,null,null,null,null,"Biometano próprio",0,"Nm³/t cana"]
[null,null,"Eletricidade da rede - mix médio",0,"kWh/t cana",null,null,null,null,null,null,"Eletricidade da rede - mix médio",0,"kWh/t cana",null,null,null,null,null,null,"Eletricidade da rede - mix médio",0,"kWh/t cana"]
[null,null,"Eletricidade - PCH",0,"kWh/t cana",null,null,null,null,null,null,"Eletricidade - PCH",0,"kWh/t cana",null,null,null,null,null,null,"Eletricidade - PCH",0,"kWh/t cana"]
[null,null,"Eletricidade - biomassa",0,"kWh/t cana",null,null,null,null,null,null,"Eletricidade - biomassa",0,"kWh/t cana",null,null,null,null,null,null,"Eletricidade - biomassa",0,"kWh/t cana"]
[null,null,"Eletricidade - eólica",0,"kWh/t cana",null,null,null,null,null,null,"Eletricidade - eólica",0,"kWh/t cana",null,null,null,null,null,null,"Eletricidade - eólica",0,"kWh/t cana"]
[null,null,"Eletricidade - solar",0,"kWh/t cana",null,null,null,null,null,null,"Eletricidade - solar",0,"kWh/t cana",null,null,null,null,null,null,"Eletricidade - solar",0,"kWh/t cana"]

{"sheet":"Enderecos","index":8,"n_rows":24,"n_cols":5,"rows_kept":24,"cut":false,"hidden":true,"merged":[]}
["Não alterar posições das informações nessa planilha!"]
[]
[null,"E1GC"]
[null,null,"Usina","Padrão","Guarda valores primários"]
[null,"Coluna valores",{"$f":"COLUMN('F1'!$D$35)","v":4},{"$f":"COLUMN('F1'!$M$35)","v":13},{"$f":"COLUMN('F1'!$V$35)","v":22}]
[null,"Coluna Especificar",{"$f":"COLUMN('F1'!$C$56)","v":3},{"$f":"COLUMN('F1'!$L$56)","v":12},{"$f":"COLUMN('F1'!$U$56)","v":21}]
[null,"Colunas %",{"$f":"COLUMN('F1'!$G$61)","v":7},{"$f":"COLUMN('F1'!$P$61)","v":16},{"$f":"COLUMN('F1'!$Y$61)","v":25}]
[null,"Linha Área queimada",{"$f":"ROW('F1'!$D$35)","v":35}]
[null,"Linha Corretivos (inicio)",{"$f":"ROW('F1'!$D$38)","v":38}]
[null,"Linha Corretivos (fim)",{"$f":"ROW('F1'!$D$40)","v":40}]
[null,"Linha Fertilizantes (inicio)",{"$f":"ROW('F1'!$D$43)","v":43}]
[null,"Linha Fertilizantes (fim)",{"$f":"ROW('F1'!$D$58)","v":58}]
[null,"Linha Fertilizantes (\"especificar\" inicio)",{"$f":"ROW('F1'!$C$56)","v":56}]
[null,"Linha Fertilizantes (\"especificar\" fim)",{"$f":"ROW('F1'!$C$58)","v":58}]
[null,"Linha Fertilizantes org. (inicio)",{"$f":"ROW('F1'!$D$61)","v":61}]
[null,"Linha Fertilizantes org. (fim)",{"$f":"ROW('F1'!$D$65)","v":65}]
[null,"Linha Fertilizantes org. (\"especificar\" inicio)",{"$f":"ROW('F1'!$C$64)","v":64}]
[null,"Linha Fertilizantes org. (\"especificar\" fim)",{"$f":"ROW('F1'!$C$65)","v":65}]
[null,"Linha Combust. (inicio)",{"$f":"ROW('F1'!$D$68)","v":68}]
[null,"Linha Combust. (fim)",{"$f":"ROW('F1'!$D$82)","v":82}]
[null,"Linha BX",{"$f":"ROW('F1'!$G$70)","v":70}]
[null,"Linha default/primario",{"$f":"ROW('F1'!$V$31)","v":31}]
[null,"Coluna default/primario",{"$f":"COLUMN('F1'!$V$31)","v":22}]
[null,"Área total",{"$f":"ROW('F1'!$D$23)","v":23}]

{"sheet":"Listas","index":9,"n_rows":11,"n_cols":3,"rows_kept":11,"cut":false,"hidden":true,"merged":[]}
[]
[null,null,"Sim"]
[null,null,"Não"]
[]
[null,null,"Ativo"]
[null,null,"Pendente"]
[null,null,"Cancelado"]
[]
[null,null,"Convencional"]
[null,null,"Direto"]
[null,null,"Mínimo/Reduzido"]